Cogmind - Beta 15 @@@ ROGUE MODE // 2025.05.12 @ 22:06:43 Player: amhuman Result: Destroyed by H-66 Slayer with Gauss Rifle Performance ------------- Evolutions (4) 2000 Regions Visited (4) 800 Robots Destroyed (31) 155 Value Destroyed (1025) 1025 Prototype IDs (8) 160 Alien Tech Used (0) 0 Bonus (919) 919 TOTAL SCORE: 5059 Bonus ------- Follower Combat Kills 119 Registered with UFD 300 Met Optimus in HQ 500 Cogmind --------- Core Integrity 0/850 Matter 243/300 Energy 160/160 System Corruption 2% Temperature Cool (0) Movement Walking (170) Ox1 Location -6/Factory Parts ------- > --- POWER (1) -------- Light Fission Core > --- PROPULSION (4) --- Overtuned Titanium Leg Overtuned Titanium Leg Overtuned Titanium Leg > --- UTILITY (7) ------ Scrap Suit Improved Heat Sink Improved Heat Sink High-capacity Storage Unit 0b10 Decoder Chip [Generic] > --- WEAPON (3) ------- Overtuned Barrage Gun Overtuned Barrage Gun > --- INVENTORY (20) --- Light Nuclear Core Light Treads Terrain Scanner Advanced ECM Suite Drone Bay (2/2) Spread Laser Overtuned Pulse Rifle Overtuned Pulse Rifle Overtuned Quantum Rifle Heavy Flail Companion Sword Peak State ------------ > --- POWER ------------ Light Fission Core > --- PROPULSION ------- Carbon-fiber Leg Overtuned Titanium Leg Overtuned Titanium Leg Overtuned Titanium Leg > --- UTILITY ---------- Scrap Suit Improved Heat Sink Improved Heat Sink Improved Heat Sink High-capacity Storage Unit > --- WEAPON ----------- Overtuned Barrage Gun Overtuned Barrage Gun Improved Datajack > --- INVENTORY -------- Light Nuclear Core Light Treads Terrain Scanner 0b10 Decoder Chip [Generic] Advanced ECM Suite Drone Bay Spread Laser Overtuned Pulse Rifle Overtuned Quantum Rifle Heavy Flail Companion Sword [Rating: 48] Favorites ----------- Power Light Ion Engine Engine Light Ion Engine Power Core Light Fission Core Propulsion Aluminum Leg Treads Light Treads Leg Aluminum Leg Wheel Armored Huge Wheel Utility High-capacity Storage Unit Device Sensor Array Storage High-capacity Storage Unit Processor 0b10 Decoder Chip [Generic] Weapon Improved Medium Laser Energy Gun Improved Medium Laser Energy Cannon Heavy Particle Cannon Ballistic Gun Subdweller Machine Gun Ballistic Cannon Heavy Flak Cannon Slashing Weapon Companion Sword Special Melee Weapon Improved Datajack Build | -11 -10 -10 -8 -6 ------- Run | Yrd Mat Sub Scr Fac Slots Evolved 8 | . . . . 8 Power . | . . . . . Propulsion 2 | . . . . 2 Utility 5 | . . . . 5 Weapon 1 | . . . . 1 Parts Attached 54 | 6 8 6 3 31 Power 5 | 1 . 1 . 3 Engine 2 | 1 . 1 . . Core 3 | . . . . 3 Reactor . | . . . . . Propulsion 14 | 2 2 1 1 8 Treads 1 | . . . . 1 Leg 10 | 2 2 1 . 5 Wheel 3 | . . . 1 2 Hover . | . . . . . Flight . | . . . . . Utility 14 | 1 2 1 2 8 Device 11 | . 2 1 1 7 Storage 2 | 1 . . 1 . Processor 1 | . . . . 1 Hackware . | . . . . . Protection . | . . . . . Artifact . | . . . . . Weapon 21 | 2 4 3 . 12 Energy Gun 10 | 1 4 2 . 3 Energy Cannon 1 | . . . . 1 Ballistic Gun 7 | 1 . 1 . 5 Ballistic Cannon 1 | . . . . 1 Launcher . | . . . . . Special Weapon . | . . . . . Impact Weapon . | . . . . . Slashing Weapon 1 | . . . . 1 Piercing Weapon . | . . . . . Special Melee Weapon 1 | . . . . 1 Unidentified Prototypes 2 | . 1 . . 1 Parts Lost 27 | . 2 3 . 22 Power 4 | . . 1 . 3 Propulsion 6 | . . 1 . 5 Utility 7 | . 1 1 . 5 Weapon 10 | . 1 . . 9 Highest Loss Streak 10 | . 1 2 . 10 To Critical Strikes . | . . . . . Average Backups 14 | . 5 7 16 15 Power . | . 1 . 1 . Propulsion 3 | . . 1 4 2 Utility 2 | . 1 1 2 4 Weapon 6 | . 2 2 7 7 Tool/Special . | . . . . . Unused Backups 16 | . 2 . 7 7 Power 2 | . . . 1 1 Propulsion 2 | . . . 2 . Utility 4 | . . . 2 2 Weapon 7 | . 2 . 1 4 Tool/Special 1 | . . . 1 . Average Slot Usage (%) 85 | . 96 98 88 58 Engine 11 | . 14 13 14 2 Leg 11 | . 28 27 7 8 Wheel 7 | . . . 10 5 Device 13 | . 10 13 14 10 Storage 12 | . 14 14 14 6 Energy Gun 13 | . 24 18 14 3 Ballistic Gun 11 | . 3 9 14 6 Peak Build Rating 48 | 6 11 11 23 48 Average Rating 19 | 4 9 10 19 32 On Entrance 10 | . 6 11 11 23 Naked Turns . | . . . . . Heaviest Build 63 | 13 17 19 51 63 Greatest Support 57 | 20 20 20 28 57 Greatest Overweight (x) 3 | . 1 . 1 3 Average Overweight (x) . | . . . . 1 Largest Inventory Capacity 20 | 8 8 8 20 20 Average Capacity 15 | 6 8 8 16 20 Most Carried 20 | 2 8 8 20 20 Average Carried 14 | . 6 7 16 15 Final Capacity 20 | 8 8 8 20 20 Final Carried 20 | 2 8 7 20 11 Class Distribution -------------------- 85% | Mutant 9% | Scavenger-Mutant Dominant Class ---------------- Mutant | -10/Materials Scavenger-Mutant | -10/Subcaves Mutant | -8/Scraptown Mutant | -6/Factory Resources | -11 -10 -10 -8 -6 ----------- Run | Yrd Mat Sub Scr Fac Matter Collected 948 | 260 84 55 80 469 Remotely . | . . . . . Salvage Created 1244 | . 336 156 . 752 Parts 52 | . 18 6 . 28 Haulers Intercepted . | . . . . . Recyclers Shooed 2 | . . . . 2 Parts Field Recycled . | . . . . . Retrieved Matter . | . . . . . Parts Self-Destructed 5 | . . 5 . . Prevented . | . . . . . Kills | -11 -10 -10 -8 -6 ------- Run | Yrd Mat Sub Scr Fac Combat Hostiles Destroyed 28 | . 10 4 . 14 Melee 6 | . . . . 6 Guns 18 | . 10 4 . 4 Cannons 4 | . . . . 4 Classes Destroyed 8 | . 3 1 . 4 Worker 1 | . . . . 1 Recycler 1 | . . . . 1 Operator 1 | . 1 . . . Swarmer 10 | . 3 . . 7 Grunt 11 | . 7 . . 4 Sentry 2 | . . . . 2 Programmer 1 | . . . . 1 Subdweller 4 | . . 4 . . Best Kill Streak 5 | . 4 2 . 5 Combat Bots Only 5 | . 4 2 . 5 Max Kills in Single Turn 1 | . 1 1 . 1 Gunslinging . | . . . . . Exploded . | . . . . . Melee 1 | . . . . 1 Uniques/NPCs Destroyed . | . . . . . Combat | -11 -10 -10 -8 -6 -------- Run | Yrd Mat Sub Scr Fac Hostile Shots Fired 519 | . 71 27 . 421 Missed 179 | . 26 11 . 142 Hits 340 | . 45 16 . 279 Projectile 340 | . 45 16 . 279 Critical Strikes 2 | . . . . 2 Damage Taken 4516 | . 486 337 . 3693 Core 1043 | . 121 67 . 855 Absorbed by Shields . | . . . . . Core Remaining (%) 62 | 100 . . 24 . Volleys Fired 102 | . 27 29 . 46 Largest 3 | . 2 2 . 3 Hottest 130 | . 121 121 . 130 Shots Fired 181 | . 54 46 . 81 Gun 167 | . 54 46 . 67 Cannon 14 | . . . . 14 Launcher . | . . . . . Special . | . . . . . Kinetic 69 | . 3 15 . 51 Thermal 112 | . 51 31 . 30 Explosive . | . . . . . Electromagnetic . | . . . . . Robot Hit Streak 9 | . 8 8 . 9 Robot Miss Streak 6 | . 6 5 . 5 Penetration Max . | . . . . . Secondary Targets 3 | . 3 . . . Max Gunslinging Chain 1 | . 1 . . . Shots Hit Robots 147 | . 40 36 . 71 Core Hits 83 | . 34 8 . 41 Critical Kills . | . . . . . Critical Parts Destroyed . | . . . . . Critical Strikes 5 | . 2 2 . 1 Burn 5 | . 2 2 . 1 Melee Attacks 32 | . . . . 32 Impact . | . . . . . Slashing 28 | . . . . 28 Piercing . | . . . . . Sneak Attacks 4 | . . . . 4 Combat Hostiles . | . . . . . Follow-up Attacks 1 | . . . . 1 Damage Inflicted 3123 | . 584 661 . 1878 Guns 2241 | . 584 661 . 996 Cannons 227 | . . . . 227 Explosions . | . . . . . Melee 655 | . . . . 655 Ramming . | . . . . . Kinetic 1097 | . 26 268 . 803 Thermal 1371 | . 558 393 . 420 Explosive . | . . . . . Electromagnetic . | . . . . . Impact . | . . . . . Slashing 655 | . . . . 655 Piercing . | . . . . . Highest Corruption 2 | . . . . 2 Average Corruption 1 | . . . . 1 Corruption Purged . | . . . . . Corruption Blocked . | . . . . . Effects 7 | . . . . 7 Message Errors 2 | . . . . 2 Matter Fused 2 | . . . . 2 Heat Flow Errors 1 | . . . . 1 Energy Discharges 1 | . . . . 1 Weapon Failures 1 | . . . . 1 Overload Shots . | . . . . . Overflow Damage . | . . . . . Projectiles . | . . . . . Explosions . | . . . . . Melee . | . . . . . Knockbacks 2 | . . . . 2 Impact . | . . . . . Kinetic 2 | . . . . 2 Secondary . | . . . . . Self-Inflicted Damage . | . . . . . Shots . | . . . . . Rammed . | . . . . . Targets Rammed . | . . . . . Kicked . | . . . . . Crushed . | . . . . . Highest Temperature 441 | . 441 . . 319 Average Temperature 142 | . 147 . . 135 Received Heat Transfer 1119 | . 210 66 . 843 Effects 5 | . 5 . . . Shutdowns 2 | . 2 . . . Short Circuit 1 | . 1 . . . Damage (minor) 2 | . 2 . . . Siege Activations . | . . . . . Martial Activations . | . . . . . Shielding Activations . | . . . . . Robots Disrupted . | . . . . . Combat Hostiles . | . . . . . Robots Corrupted . | . . . . . Combat Hostiles . | . . . . . Parts Fried . | . . . . . Impact Corruptions . | . . . . . Robots Melted . | . . . . . Combat Hostiles . | . . . . . Parts Melted 6 | . 2 2 . 2 Heat Transferred 2850 | . 1190 902 . 758 Parts Sabotaged . | . . . . . Parts Stolen . | . . . . . Parts Stripped . | . . . . . Power Chain Reactions . | . . . . . Alert | -11 -10 -10 -8 -6 ------- Run | Yrd Mat Sub Scr Fac Maximum Alert Level . | . . . . . Low Security (%) 100 | 100 100 . . 100 Level 1 . | . . . . . Level 2 . | . . . . . Level 3 . | . . . . . Level 4 . | . . . . . Level 5 . | . . . . . High Security . | . . . . . Max Security . | . . . . . Peak Influence 114 | . 114 . . 95 Initial . | . . . . . Average 35 | . 43 . . 33 Influence Increases 799 | . 263 . . 536 Destroy 0b10 Robot/C 540 | . 200 . . 340 Destroy 0b10 Robot/NC 15 | . 5 . . 10 Destroy Leader 100 | . 30 . . 70 Allied During Kill 25 | . . . . 25 Successful Hack 27 | . 27 . . . Destroy Structure 2 | . 1 . . 1 Lose Combat Pursuer 90 | . . . . 90 Influence Decreases 775 | . 209 54 . 512 Entered New Map 26 | . . 26 . . Time Decay 459 | . 189 28 . 242 Lost Part 200 | . 20 . . 180 Lost Ally 90 | . . . . 90 Squads Dispatched 7 | . 2 . . 5 Investigation 2 | . 1 . . 1 Extermination 1 | . . . . 1 Reinforcement 3 | . 1 . . 2 Assault . | . . . . . Garrison 1 | . . . . 1 Intercept . | . . . . . Searches Triggered . | . . . . . Construction Impeded . | . . . . . Haulers Reinforced . | . . . . . Active Scanning Responses . | . . . . . Cargo Convoy Interrupts . | . . . . . Stealth | -11 -10 -10 -8 -6 --------- Run | Yrd Mat Sub Scr Fac Distress Signals 2 | . 1 . . 1 Communications Jammed . | . . . . . Distress Signals . | . . . . . Times Spotted 53 | . 15 4 . 34 Peak Tracking Total 7 | . 5 2 . 7 Tactical Retreats 3 | . . . . 3 Traps | -11 -10 -10 -8 -6 ------- Run | Yrd Mat Sub Scr Fac Traps Triggered 2 | . 1 . . 1 Indirectly . | . . . . . Trap Hack Attempts . | . . . . . Triggered . | . . . . . Disarmed . | . . . . . Reprogrammed . | . . . . . Reused . | . . . . . Traps Extracted . | . . . . . Installed . | . . . . . Triggered . | . . . . . Machines | -11 -10 -10 -8 -6 ---------- Run | Yrd Mat Sub Scr Fac Machines Disabled 1 | . 1 . . . Max in Single Turn 1 | . 1 . . . Garrison Access 1 | . . . . 1 Machines Repaired . | . . . . . Machines Dismantled . | . . . . . Machines Sabotaged . | . . . . . Overloaded Fab Kills . | . . . . . Hacking | -11 -10 -10 -8 -6 --------- Run | Yrd Mat Sub Scr Fac Machines Accessed 12 | . 6 . 4 2 Terminals 6 | . 6 . . . Fabricators . | . . . . . Repair Stations . | . . . . . Recycling Units 1 | . . . . 1 Scanalyzers . | . . . . . Garrison Access 1 | . . . . 1 Total Hacks 34 | . 15 . 16 3 Successful 25 | . 7 . 16 2 Failed 9 | . 8 . . 1 Catastrophic . | . . . . . Database Lockouts . | . . . . . Manual 20 | . 19 . . 1 Terminals 15 | . 15 . . . Fabricators . | . . . . . Repair Stations . | . . . . . Recycling Units 1 | . . . . 1 Scanalyzers . | . . . . . Garrison Access 2 | . . . . 2 Terminal Hacks 19 | . 3 . 16 . Record 9 | . . . 9 . Robot Analysis 7 | . 1 . 6 . Open Door 1 | . . . 1 . Terminal Index 1 | . 1 . . . Recall Investigation 1 | . 1 . . . Fabricator Hacks . | . . . . . Repair Station Hacks . | . . . . . Recycling Unit Hacks . | . . . . . Scanalyzer . | . . . . . Garrison Access Hacks 1 | . . . . 1 Seal Access 1 | . . . . 1 Unauthorized Hacks 5 | . 4 . . 1 Terminals 4 | . 4 . . . Botnet 4 | . 4 . . . Fabricators . | . . . . . Repair Stations . | . . . . . Recycling Units 1 | . . . . 1 Scrapoids 1 | . . . . 1 Scanalyzers . | . . . . . Garrison Access . | . . . . . Data Cores Recovered 1 | . 1 . . . Used . | . . . . . Hacking Detections 8 | . 7 . . 1 Full Trace Events . | . . . . . Feedback Events . | . . . . . Feedback Blocked . | . . . . . Robot Schematics Acquired . | . . . . . Robots Built . | . . . . . Authchips . | . . . . . Time . | . . . . . Total Robot Build Rating . | . . . . . Part Schematics Acquired . | . . . . . Parts Built . | . . . . . Authchips . | . . . . . Time . | . . . . . Total Part Build Rating . | . . . . . Parts Repaired . | . . . . . Time . | . . . . . Parts Recycled . | . . . . . Recycled Matter . | . . . . . Retrieved Matter . | . . . . . Retrieved Components . | . . . . . Parts Scanalyzed . | . . . . . Part Schematics Acquired . | . . . . . Parts Damaged . | . . . . . Bothacking | -11 -10 -10 -8 -6 ------------ Run | Yrd Mat Sub Scr Fac Used RIF Installer . | . . . . . Robots Hacked 2 | . . . . 2 Non-combat 2 | . . . . 2 Combat . | . . . . . Robot Hacks Applied 4 | . . . . 4 find_recycling 4 | . . . . 4 Relay Couplers Released . | . . . . . Fabnet Peak Effective % . | . . . . . Robots Rewired . | . . . . . Allies Hacked . | . . . . . Hacks Repelled . | . . . . . Allies | -11 -10 -10 -8 -6 -------- Run | Yrd Mat Sub Scr Fac Total Allies 5 | . . . . 5 Largest Group 5 | . . . . 5 Highest-Rated Group 140 | . . . . 140 Highest-Rated Ally 28 | . . . . 28 Total Orders 2 | . . . . 2 EXPLORE 2 | . . . . 2 Ally Attacks 31 | . . . . 31 Total Damage 430 | . . . . 430 Kills 4 | . . . . 4 Allies Corrupted . | . . . . . Allies Melted . | . . . . . Intel | -11 -10 -10 -8 -6 ------- Run | Yrd Mat Sub Scr Fac Active Infowar (turns) 3175 | . 84 34 2875 182 Sensors 1655 | . . 34 1455 166 Terrain 1504 | . 84 . 1420 . Seismic 123 | . . . . 123 Decoding 14 | . . . . 14 Robot Analysis Total 7 | . 1 . 6 . Derelict Logs Recovered 4 | . . 1 3 . Drone Launches 2 | . . . . 2 Drone Recoveries 1 | . . . . 1 Exploration | -11 -10 -10 -8 -6 ------------- Run | Yrd Mat Sub Scr Fac Turns Passed 4562 | 77 489 346 2875 775 Spaces Moved 2161 | 63 313 215 1202 368 Core 12 | 12 . . . . Treads . | . . . . . Legs 1323 | 51 313 215 589 155 Wheels 826 | . . . 613 213 Hover . | . . . . . Flight . | . . . . . Fastest Speed 50 | 50 120 120 100 93 Average Speed 122 | 106 121 120 117 142 Slowest Speed 330 | 120 190 120 190 330 Overloaded Moves . | . . . . . Propulsion Burnouts . | . . . . . Robots Hopped . | . . . . . Potential Cave-ins . | . . . . . Cave-ins Triggered . | . . . . . Exploration Rate (%) 32 | 4 53 16 78 12 Regions Visited 4 Branch Regions 2 Pre-discovered Areas . | . . . . . Known Exits Taken . | . . . . . Unknown Exits Taken 4 | 1 1 1 1 . Scrap Searched 4 | . . . 4 . Spaces Dug 1 | . . . . 1 Terrain Destroyed 1 | . . . . 1 Melee 1 | . . . . 1 Projectile . | . . . . . AOE . | . . . . . Terrain Rammed . | . . . . . Walls Destroyed . | . . . . . Machines Disabled . | . . . . . Actions | -11 -10 -10 -8 -6 --------- Run | Yrd Mat Sub Scr Fac Total 3875 | 70 368 256 2670 511 Wait 1447 | . 1 1 1424 21 Move 2157 | 62 312 214 1201 368 Hop . | . . . . . Pick Up 44 | 2 12 3 23 4 Fast Attach 30 | 6 3 2 3 16 Attach 20 | . 1 3 1 15 Detach 2 | . . . . 2 Swap 16 | . 5 1 3 7 Drop 26 | . 7 3 15 1 Fire 102 | . 27 29 . 46 Melee 31 | . . . . 31 Ram . | . . . . . Kick . | . . . . . Crush . | . . . . . Escape Stasis . | . . . . . Rewire . | . . . . . Trap . | . . . . . Miscellaneous . | . . . . . Route ------- -11/Scrapyard -10/Materials (discovered 2 exits: [*Min] / [*Sub]) -10/Subcaves -8/Scraptown -6/Factory (discovered 1 exit: [*Fac]) History --------- Turn | Location | Event 10 | -11/Scrapyard | Discovered new exit (range 15) 78 | -11/Scrapyard | Entered Materials 310 | -10/Materials | Discovered new exit (range 14) 318 | -10/Materials | Build established: Mutant 562 | -10/Materials | Discovered new exit (range 5) 567 | -10/Materials | Entered Subcaves 568 | -10/Subcaves | Approached by a straggling Scientist 588 | -10/Subcaves | Learned Materials trap positions 624 | -10/Subcaves | Core integrity fell below 50% 908 | -10/Subcaves | Scientist uncovered a shortcut to Scraptown 913 | -10/Subcaves | Entered Scraptown 1039 | -8/Scraptown | Visited Awakened 1093 | -8/Scraptown | Scanned Subdweller tech in exchange for log data 1097 | -8/Scraptown | Learned Factory emergency access door positions 1098 | -8/Scraptown | Learned Research garrison access intel 1412 | -8/Scraptown | Visited UFD Registry 1412 | -8/Scraptown | Registered with UFD as "Rustnade" 1429 | -8/Scraptown | Visited The Evicted 1454 | -8/Scraptown | Visited Symbiants 1493 | -8/Scraptown | Visited Cyclists 1501 | -8/Scraptown | Entered Cyclist Reading Room 1572 | -8/Scraptown | Visited Derelict Rescue Squad 1601 | -8/Scraptown | Visited A0-MCA Data Center 1618 | -8/Scraptown | Visited DA-N13 Charitable Foundation 1628 | -8/Scraptown | Found DCF Scrap (29 items) 1745 | -8/Scraptown | Visited Curators Association 1900 | -8/Scraptown | Visited Infowarlord's Domain 1937 | -8/Scraptown | Visited Modified Component R&D 2014 | -8/Scraptown | Visited Scrapoid Pod Storage 2033 | -8/Scraptown | Visited Analyses Database 2061 | -8/Scraptown | Visited Sword Containment 3724 | -8/Scraptown | Met Optimus 3724 | -8/Scraptown | Accepted into 0bPrime 3781 | -8/Scraptown | Civil war broke out across Scraptown 3783 | -8/Scraptown | Discovered new exit (range 5) 3788 | -8/Scraptown | Entered Factory 3788 | -6/Factory | Evolved 8 slots: Propulsion x2, Utility x5, Weapon x1 3919 | -6/Factory | Garrison activated, responded to threat 4005 | -6/Factory | Lost 5 parts (1n2u2w) 4005 | -6/Factory | Discovered new exit (range 11) 4132 | -6/Factory | Core integrity fell below 50% 4164 | -6/Factory | Core integrity fell below 20% 4184 | -6/Factory | Lost 10 parts (2p1n2u5w) 4331 | -6/Factory | Lost 3 parts (1p1n1w) 4454 | -6/Factory | Scrapoid reinforcements arrived 4488 | -6/Factory | Found Scrap Suit 4527 | -6/Factory | Lost 5 allies 4563 | -6/Factory | Destroyed by H-66 Slayer with Gauss Rifle Last Messages --------------- 04528_ R-10 Processor collects Adv. Heat Sink. 04528_ K-01 Serf collects debris. 04530_ Acquired 33 matter. 04531_ R-10 Processor collects Wheel. 04532_ K-01 Serf collects debris. 04535_ R-10 Processor collects Lgt. Ion Engine. 04536_ K-01 Serf collects debris. 04537_ R-10 Processor collects Hvy. Laser. 04539_ K-01 Serf collects debris. 04550_ System corrupted: Ovr. Barrage Gun jammed. 04552_ R-10 Processor destroyed. 04553_ K-01 Serf collects debris. 04554_ Critical hit (Burn: +37). 04554_ K-01 Serf destroyed. 04556_ Imp. Datajack destroyed. 04560_ Slug penetrates Wall. 04560_ Penetrated by Slug. 04561_ K-01 Serf destroyed. 04562_ K-01 Serf collects debris. Map ----- +----------------------------------------------------+ | ????????????????????????????????????????????+ | | ????????????????????????????????????????????# | | ????????????????????????????????????????????# | | ????????????????????????????????????????????# | | ????????????????????????????????????????????# | | ????????????????????????????????????????????# | | ????????????????????????????????????????????# | | ????????????????????????????????????????????# | | ????????????????????????????????????????????# | | ???????????????????????????????????+????????# | | ????????????????????????????????????????????# | | ??????????????????????????????????#+######### | | ???????????????????????????????? # | | ???????????????????????????????# # | | ???????????????????????????????# # | | ???????????????????????????????# # | | ???????????????????????????????# # | | ???????????????????????????????# # | | ???????????????????????????????# # | | ???????????????????????????????# # | | ????????????????????????????????? # "" | | ??????????????????????????????????? # "" | | ????????????????????????????????????? # "" | | ??????????????????????????????????????? ! # | | ??????????????######+####################+### % | | ?????????? o % @ % % | | ?????????? g * %% | | ?????????? g %! | | ??????????? !g R R k % | | ??????H???? % % % | | ????????????###############h#### ##############+## | | ?????????????????????????? k??# #?????????? | | ?????????????????????????""""??# #??????????? | | ?????????????????????????"""" ?# #??????????? | | ???????????????????????? """" ?# #???????????? | | ?????????????????????????"""" # #???????????? | | ????????????????????????????? # #????????????? | | ??????????????????????????????[# #????????????? | | ???????????????????????????????# #?????????????? | | ???????????????????????????????? ??????????????? | | ???????????????????????????????? ??????????????? | | ???????????????????????????????? ??????????????? ? | | ?????????????????????????????????????????????????? | | ?????????????????????????????????????????????????? | | ??????????????+??????????????????????????????????? | | ?????????????????????????????????????????????????? | | ?????????????????????????????????????????????????? | | ?????????????????????????????????????????????????? | | ?????????????????????????????????????????????????? | | ?????????????????????????????????????????????????? | +----------------------------------------------------+ Best States ------------- Heat Dissipation 79 Energy Generation 18 Energy Capacity 250 Matter Stores 300 Matter Capacity 300 Sight Range 16 Robot Scan Range 14 Terrain Scan Range 14 Terrain Scan Density 10 Evasion (%) 55 Recoil Reduction 1 Item Schematics ----------------- None Robot Schematics ------------------ None Fabricated ------------ Nothing Repaired ---------- Nothing Alien Tech Used ----------------- None Achievements -------------- None Challenges ------------ None Game ------ Seed CloakingSigixCleaver Manual? 0 Play Time 00:54:31 Cumulative 194.6 hours Start 2025.05.12 @ 20:48:01 End 2025.05.12 @ 22:06:43 Sessions 3 Manual Loads 0 Difficulty Rogue Special Mode None Game No. 189 Rogue 189 Adventurer 0 Explorer 0 Win Type - Total 1 Types 1/0/0/0/0/0/0/0/0/0 Lore% 69 Gallery% 55 Achievement% 48 Wizard Run 0 Options --------- Layout 1 ASCII 0 Keyboard 0 Movement Mouse Keybinds 0 Fullscreen 1 Font 24/Smallcaps Map View 50x35 Zoom Use 1% Tactical HUD 1 Map Filters NONE Filters NONE Steam 1 RUN: 66a8e046-e86f-44fe-96c6-69b55100984b